Workbook

Sheet آسفالت
A1: ردیف | B1: تاریخ | C1: مسیر | D1: طول مسیر | E1: مختصات ابتدای مسیر | F1: مختصات انتهای مسیر | G1: عرض مازاد | H1: طول مسیرعرض مازاد(m) | I1: مختصات عرض مازاد | J1: شماره عکس | K1: معادل سازی متر طول15سانت | L1: =SUM(L2:L999999) -> 998.15 | M1: =SUM(M2:M999999) -> 1609.5 | N1: =M1+L1 -> 2607.65
A2: 1 | B2: 1404/01/21 | C2: 1 | D2: 80 | E2: 32.381071,48.417979 | F2: 32.380455,48.417558 | G2: 50 | H2: 1.4 | I2: 32.381054,48.417974 | J2: 3061 | K2: =H2*G2/15 -> 4.666666667 | L2: =K2 -> 4.666666667 | M2: =D2 -> 80
A3: 2 | B3: 1404/01/21 | C3: 1 | D3: 0 | E3: 32.381071,48.417979 | F3: 32.380455,48.417558 | G3: 20 | H3: 6 | I3: 32.381012,48.417984 | J3: 3062 | K3: =H3*G3/15 -> 8 | L3: =K3 -> 8 | M3: =D3 -> 0
A4: 3 | B4: 1404/01/21 | C4: 1 | D4: 0 | E4: 32.381071,48.417979 | F4: 32.380455,48.417558 | G4: 10 | H4: 17 | I4: 32.380898,48.417925 | J4: 3063 | K4: 11.33333333 | L4: 11.33333333 | M4: 0
A5: 4 | B5: 1404/01/21 | C5: 1 | D5: 0 | E5: 32.381071,48.417979 | F5: 32.380455,48.417558 | G5: 15 | H5: 22 | I5: 32.380591,48.417674 | J5: 3064 | K5: 22 | L5: 22 | M5: 0
A6: 5 | B6: 1404/01/21 | C6: 1 | D6: 0 | E6: خیابان ابوریحان تانبش فجرروبروی سایپا | J6: 0 | K6: =H6*G6/10 -> 0 | L6: 0 | M6: 0
A7: 6 | B7: 1404/01/21 | C7: 2 | D7: 210 | E7: 32.373618,48.417226 | F7: 32.373172,48.416377 | G7: 60 | H7: 3.2 | I7: 32.3733612,48.417221 | J7: 3067 | K7: =H7*G7/15 -> 12.8 | L7: 12.8 | M7: 210
A8: 7 | B8: 1404/01/21 | C8: 2 | D8: 0 | E8: 32.373618,48.417226 | F8: 32.373172,48.416377 | G8: 65 | H8: 1.7 | I8: 32.373419,48.417082 | J8: 3068 | K8: =H8*G8/15 -> 7.366666667 | L8: 7.366666667 | M8: 0
A9: 8 | B9: 1404/01/21 | C9: 2 | D9: 0 | E9: 32.373618,48.417226 | F9: 32.373172,48.416377 | G9: 60 | H9: 0.8 | I9: 32.373180,48.416908 | J9: 3069 | K9: 3.2 | L9: 3.2 | M9: 0
A10: 9 | B10: 1404/01/21 | C10: 2 | D10: 0 | E10: 32.373618,48.417226 | F10: 32.373172,48.416377 | G10: 15 | H10: 7.3 | I10: 32.373174,48.416891 | J10: 3070 | K10: 7.3 | L10: 7.3 | M10: 0
A11: 10 | B11: 1404/01/21 | C11: 2 | D11: 0 | E11: 32.373618,48.417226 | F11: 32.373172,48.416377 | G11: 40 | H11: 0.9 | I11: 32.372929,48.416740 | J11: 3071 | K11: 2.4 | L11: 2.4 | M11: 0
A12: 11 | B12: 1404/01/21 | C12: 2 | D12: 0 | E12: 32.373618,48.417226 | F12: 32.373172,48.416377 | G12: 55 | H12: 1.8 | I12: 32.372858,48.416682 | J12: 3072 | K12: 6.6 | L12: 6.6 | M12: 0
A13: 12 | B13: 1404/01/21 | C13: 2 | D13: 0 | E13: 32.373618,48.417226 | F13: 32.373172,48.416377 | G13: 30 | H13: 1.5 | I13: 32.372807,48.416640 | J13: 3073 | K13: 3 | L13: 3 | M13: 0
A14: 13 | B14: 1404/01/21 | C14: 2 | D14: 0 | E14: 32.373618,48.417226 | F14: 32.373172,48.416377 | G14: 45 | H14: 2 | I14: 32.372875,48.416168 | J14: 3074 | K14: 6 | L14: 6 | M14: 0
A15: 14 | B15: 1404/01/21 | C15: 2 | D15: 0 | E15: 32.373618,48.417226 | F15: 32.373172,48.416377 | G15: 55 | H15: 5 | I15: 32.372895,48.416176 | J15: 3075 | K15: 18.33333333 | L15: 18.33333333 | M15: 0
A16: 15 | B16: 1404/01/21 | C16: 2 | D16: 0 | E16: 32.373618,48.417226 | F16: 32.373172,48.416377 | G16: 15 | H16: 7 | I16: 32.373017,48.416277 | J16: 3076 | K16: 7 | L16: 7 | M16: 0
A17: 16 | B17: 1404/01/21 | C17: 2 | D17: 0 | E17: 32.373618,48.417226 | F17: 32.373172,48.416377 | G17: 40 | H17: 3.5 | I17: 32.373021,48.416303 | J17: 3077 | K17: 9.333333333 | L17: 9.333333333 | M17: 0
A18: 17 | B18: 1404/01/21 | C18: 2 | D18: 0 | E18: 32.373618,48.417226 | F18: 32.373172,48.416377 | G18: 65 | H18: 2 | I18: 32.373151,48.416377 | J18: 3078 | K18: 8.666666667 | L18: 8.666666667 | M18: 0
A19: 18 | B19: 1404/01/21 | C19: 2 | D19: 0 | E19: خیابان فداییان اسلام از نبش دارالمومنین تاکوچه شهید اردی زاده آخر مسیر | J19: 0 | K19: =H19*G19/10 -> 0 | L19: 0 | M19: 0
A20: 19 | B20: 1404/01/21 | C20: 3 | D20: 101 | E20: 32.372735,48.416649 | F20: 32.372355,48.417585 | G20: 70 | H20: 1.5 | I20: 32.372735,48.416649 | J20: 3081 | K20: =H20*G20/15 -> 7 | L20: 7 | M20: 101
A21: 20 | B21: 1404/01/21 | C21: 3 | E21: 32.372735,48.416649 | F21: 32.372355,48.417585 | G21: 95 | H21: 1.5 | I21: 32.372736,48.416679 | J21: 3082 | K21: =H21*G21/15 -> 9.5 | L21: 9.5 | M21: 0
A22: 21 | B22: 1404/01/21 | C22: 3 | E22: 32.372735,48.416649 | F22: 32.372355,48.417585 | G22: 85 | H22: 0.9 | I22: 32.372735,48.416753 | J22: 3083 | K22: 5.1 | L22: 5.1 | M22: 0
A23: 22 | B23: 1404/01/21 | C23: 3 | E23: 32.372735,48.416649 | F23: 32.372355,48.417585 | G23: 25 | H23: 6.5 | I23: 32.372715,48.416838 | J23: 3084 | K23: 10.83333333 | L23: 10.83333333 | M23: 0
A24: 23 | B24: 1404/01/21 | C24: 3 | E24: 32.372735,48.416649 | F24: 32.372355,48.417585 | G24: 20 | H24: 4 | I24: 32.372681,48.416875 | J24: 3085 | K24: 5.333333333 | L24: 5.333333333 | M24: 0
A25: 24 | B25: 1404/01/21 | C25: 3 | E25: 32.372735,48.416649 | F25: 32.372355,48.417585 | G25: 45 | H25: 2 | I25: 32.372525,48.417172 | J25: 3086 | K25: 6 | L25: 6 | M25: 0
A26: 25 | B26: 1404/01/21 | C26: 3 | E26: 32.372735,48.416649 | F26: 32.372355,48.417585 | G26: 85 | H26: 1.6 | I26: 32.372519,48.417186 | J26: 3087 | K26: 9.066666667 | L26: 9.066666667 | M26: 0
B27: جمع طولی | D27: =SUM(D2:D26) -> 391 | E27: صفحه 1 | I27: جمع مازاد | K27: =SUM(K2:K26) -> 190.8333333 | L27: 0 | M27: 0
A28: ردیف | B28: تاریخ | C28: مسیر | D28: طول مسیر | E28: مختصات ابتدای مسیر | F28: مختصات انتهای مسیر | G28: عرض مازاد | H28: طول مسیرعرض مازاد(m) | I28: مختصات عرض مازاد | J28: شماره عکس | K28: معادل سازی متر طول | L28: 0 | M28: 0
A29: 26 | B29: 1404/01/21 | C29: 3 | E29: 32.372735,48.416649 | F29: 32.372355,48.417585 | G29: 60 | H29: 2 | I29: 32.372489,48.417250 | J29: 3088 | K29: =H29*G29/15 -> 8 | L29: =K29 -> 8 | M29: 0
A30: 27 | B30: 1404/01/21 | C30: 3 | E30: 32.372735,48.416649 | F30: 32.372355,48.417585 | G30: 45 | H30: 2.4 | I30: 32.372457,48.417282 | J30: 3089 | K30: =H30*G30/15 -> 7.2 | L30: 7.2 | M30: 0
A31: 28 | B31: 1404/01/21 | C31: 3 | E31: 32.372735,48.416649 | F31: 32.372355,48.417585 | G31: 10 | H31: 1 | I31: 32.372400,48.417417 | J31: 3090 | K31: 0.6666666667 | L31: 0.6666666667 | M31: 0
A32: 29 | B32: 1404/01/21 | C32: 3 | D32: 0 | E32: 32.372735,48.416649 | F32: 32.372355,48.417585 | G32: 45 | H32: 4 | I32: 32.372362,48.417590 | J32: 3091 | K32: 12 | L32: 12 | M32: 0
A33: 30 | B33: 1404/01/21 | C33: 3 | D33: 0 | E33: خیابان اندرزگو از نبش فداییان اسلام تااخر مسیر | J33: 0 | K33: =G33*H33/10 -> 0 | L33: 0 | M33: 0
A34: 31 | B34: 1404/01/22 | C34: 1 | D34: 67 | E34: 32.379505,48.414810 | F34: 32.379725,48.414274 | G34: 35 | H34: 6.6 | I34: 32.379512,48.414793 | J34: 3104 | K34: =G34*H34/15 -> 15.4 | L34: 15.4 | M34: 67
A35: 32 | B35: 1404/01/22 | C35: 1 | D35: 0 | E35: 32.379505,48.414810 | F35: 32.379725,48.414274 | G35: 10 | H35: 28.8 | I35: 32.379546,48.414802 | J35: 3105 | K35: =G35*H35/15 -> 19.2 | L35: 19.2 | M35: 0
A36: 33 | B36: 1404/01/22 | C36: 1 | D36: 0 | E36: 32.379505,48.414810 | F36: 32.379725,48.414274 | G36: 80 | H36: 2 | I36: 32.379559,48.41824 | J36: 3106 | K36: 10.66666667 | L36: 10.66666667 | M36: 0
A37: 34 | B37: 1404/01/22 | C37: 1 | D37: 0 | E37: 32.379505,48.414810 | F37: 32.379725,48.414274 | G37: 15 | H37: 10 | I37: 32.379602,48.414738 | J37: 3107 | K37: 10 | L37: 10 | M37: 0
A38: 35 | B38: 1404/01/22 | C38: 1 | D38: 0 | E38: 32.379505,48.414810 | F38: 32.379725,48.414274 | G38: 110 | H38: 0.8 | I38: 32.379626,48.414545 | J38: 3108 | K38: 5.866666667 | L38: 5.866666667 | M38: 0
A39: 36 | B39: 1404/01/22 | C39: 1 | D39: 0 | E39: 32.379505,48.414810 | F39: 32.379725,48.414274 | G39: 30 | H39: 1.3 | I39: 32.379684,48.414434 | J39: 3109 | K39: 2.6 | L39: 2.6 | M39: 0
A40: 37 | B40: 1404/01/22 | C40: 1 | D40: 0 | E40: 32.379505,48.414810 | F40: 32.379725,48.414274 | G40: 25 | H40: 3 | I40: 32.379736,48.414270 | J40: 3110 | K40: 5 | L40: 5 | M40: 0
A41: 38 | B41: 1404/01/22 | C41: 1 | D41: 0 | E41: 32.379505,48.414810 | F41: 32.379725,48.414274 | G41: 0 | H41: 0 | I41: 32.379725,48.414274 | J41: 3111 | K41: =G41*H41/10 -> 0 | L41: 0 | M41: 0
A42: 39 | B42: 1404/01/22 | C42: 1 | D42: 0 | E42: خیابان معزی از نبش مطهری تا 45 متری | J42: 0 | K42: 0 | L42: 0 | M42: 0
A43: 40 | B43: 1404/01/22 | C43: 2 | D43: 127 | E43: 32.379728,48.414276 | F43: 32.380727,48.413958 | G43: 45 | H43: 2 | I43: 32.380259,48.414079 | J43: 3113 | K43: =G43*H43/15 -> 6 | L43: 6 | M43: 127
A44: 41 | B44: 1404/01/22 | C44: 2 | D44: 0 | E44: 32.379728,48.414276 | F44: 32.380727,48.413958 | G44: 20 | H44: 7 | I44: 32.380413,48.414017 | J44: 3114 | K44: =G44*H44/15 -> 9.333333333 | L44: 9.333333333 | M44: 0
A45: 42 | B45: 1404/01/22 | C45: 2 | D45: 0 | E45: خیابان45متری از نبش معزی تانبش خیابان فجر | J45: 0 | K45: 0 | L45: 0 | M45: 0
A46: 43 | B46: 1404/01/22 | C46: 3 | D46: 197 | E46: 32.376095,48.422024 | F46: 32.376882,48.420357 | G46: 80 | H46: 0.6 | I46: 32.376174,48.421713 | J46: 3141 | K46: =G46*H46/15 -> 3.2 | L46: 3.2 | M46: 197
A47: 44 | B47: 1404/01/22 | C47: 3 | D47: 0 | E47: 32.376095,48.422024 | F47: 32.376882,48.420357 | G47: 80 | H47: 0.9 | I47: 32.376293,48.421627 | J47: 3142 | K47: =G47*H47/15 -> 4.8 | L47: 4.8 | M47: 0
A48: 45 | B48: 1404/01/22 | C48: 3 | D48: 0 | E48: 32.376095,48.422024 | F48: 32.376882,48.420357 | G48: 15 | H48: 1.5 | I48: 32.376393,48.421388 | J48: 3143 | K48: 1.5 | L48: 1.5 | M48: 0
A49: 46 | B49: 1404/01/22 | C49: 3 | D49: 0 | E49: 32.376095,48.422024 | F49: 32.376882,48.420357 | G49: 20 | H49: 7 | I49: 32.376437,48.421314 | J49: 3144 | K49: 9.333333333 | L49: 9.333333333 | M49: 0
A50: 47 | B50: 1404/01/22 | C50: 3 | D50: 0 | E50: 32.376095,48.422024 | F50: 32.376882,48.420357 | G50: 65 | H50: 1 | I50: 32.376473,48.421247 | J50: 3146 | K50: 4.333333333 | L50: 4.333333333 | M50: 0
A51: 48 | B51: 1404/01/22 | C51: 3 | D51: 0 | E51: 32.376095,48.422024 | F51: 32.376882,48.420357 | G51: 50 | H51: 0.6 | I51: 32.376496,48.421214 | J51: 3147 | K51: 2 | L51: 2 | M51: 0
A52: 49 | B52: 1404/01/22 | C52: 3 | D52: 0 | E52: 32.376095,48.422024 | F52: 32.376882,48.420357 | G52: 100 | H52: 0.9 | I52: 32.376845,48.420528 | J52: 3148 | K52: 6 | L52: 6 | M52: 0
A53: 50 | B53: 1404/01/22 | C53: 3 | D53: 0 | E53: 32.376095,48.422024 | F53: 32.376882,48.420357 | G53: 85 | H53: 0.9 | I53: 32.376867,48.420493 | J53: 3149 | K53: 5.1 | L53: 5.1 | M53: 0
A54: 51 | B54: 1404/01/22 | C54: 3 | D54: 0 | E54: 32.376095,48.422024 | F54: 32.376882,48.420357 | G54: 60 | H54: 1.1 | I54: 32.376872,48.420306 | J54: 3150 | K54: 4.4 | L54: 4.4 | M54: 0
B55: جمع طولی | D55: =SUM(D29:D54) -> 391 | E55: صفحه 2 | I55: جمع مازاد | K55: =SUM(K29:K54) -> 152.6 | L55: 0 | M55: 0
A56: ردیف | B56: تاریخ | C56: مسیر | D56: طول مسیر | E56: مختصات ابتدای مسیر | F56: مختصات انتهای مسیر | G56: عرض مازاد | H56: طول مسیرعرض مازاد(m) | I56: مختصات عرض مازاد | J56: شماره عکس | K56: معادل سازی متر طول | L56: 0 | M56: 0
A57: 52 | B57: 1404/01/22 | C57: 3 | D57: 0 | E57: 32.376095,48.422024 | F57: 32.376882,48.420357 | G57: 75 | H57: 1.5 | I57: 32.376902,48.420373 | J57: 3151 | K57: =H57*G57/15 -> 7.5 | L57: =K57 -> 7.5 | M57: 0
A58: 53 | B58: 1404/01/22 | C58: 3 | D58: 0 | E58: خیابان شریعتی ازنبش پیام آوران تانبش خیابان ابوالفضل | J58: 0 | K58: =H58*G58/15 -> 0 | L58: 0 | M58: 0
A59: 54 | B59: 1404/01/24 | C59: 1 | D59: 66 | E59: 32.366577,48.386504 | F59: 32.366069,48.386110 | G59: 55 | H59: 3.3 | I59: 32.366565,48.386492 | J59: 3181 | K59: 12.1 | L59: 12.1 | M59: 66
A60: 55 | B60: 1404/01/24 | C60: 1 | D60: 0 | E60: خیابان امام از روبروی ارتباطات مرکزی تاخیابان مقام علی | J60: 0 | K60: 0 | L60: 0 | M60: 0
A61: 56 | B61: 1404/01/24 | C61: 2 | D61: 321 | E61: 32.366069,48.386110 | F61: 32.368032,48.383622 | G61: 65 | H61: 1.4 | I61: 32.366069,48.386110 | J61: 3184 | K61: 6.066666667 | L61: 6.066666667 | M61: 321
A62: 57 | B62: 1404/01/24 | C62: 2 | D62: 0 | E62: 32.366069,48.386110 | F62: 32.368032,48.383622 | G62: 50 | H62: 2 | I62: 32.366078,48.386094 | J62: 3185 | K62: 6.666666667 | L62: 6.666666667 | M62: 0
A63: 58 | B63: 1404/01/24 | C63: 2 | D63: 0 | E63: 32.366069,48.386110 | F63: 32.368032,48.383622 | G63: 20 | H63: 3 | I63: 32.366207,48.385898 | J63: 3186 | K63: 4 | L63: 4 | M63: 0
A64: 59 | B64: 1404/01/24 | C64: 2 | D64: 0 | E64: 32.366069,48.386110 | F64: 32.368032,48.383622 | G64: 70 | H64: 0.6 | I64: 32.366246,48.385849 | J64: 3187 | K64: 2.8 | L64: 2.8 | M64: 0
A65: 60 | B65: 1404/01/24 | C65: 2 | D65: 0 | E65: 32.366069,48.386110 | F65: 32.368032,48.383622 | G65: 20 | H65: 53 | I65: 32.366290,48.385805 | J65: 3188 | K65: 70.66666667 | L65: 70.66666667 | M65: 0
A66: 61 | B66: 1404/01/24 | C66: 2 | D66: 0 | E66: 32.366069,48.386110 | F66: 32.368032,48.383622 | G66: 65 | H66: 2.2 | I66: 32.366675,48.385285 | J66: 3189 | K66: 9.533333333 | L66: 9.533333333 | M66: 0
A67: 62 | B67: 1404/01/24 | C67: 2 | D67: 0 | E67: 32.366069,48.386110 | F67: 32.368032,48.383622 | G67: 60 | H67: 1.8 | I67: 32.366686,48.385267 | J67: 3190 | K67: 7.2 | L67: 7.2 | M67: =D67 -> 0
A68: 63 | B68: 1404/01/24 | C68: 2 | D68: 0 | E68: 32.366069,48.386110 | F68: 32.368032,48.383622 | G68: 10 | H68: 18 | I68: 32.366926,48.385002 | J68: 3191 | K68: 12 | L68: 12 | M68: 0
A69: 64 | B69: 1404/01/24 | C69: 2 | D69: 0 | E69: 32.366069,48.386110 | F69: 32.368032,48.383622 | G69: 50 | H69: 3.8 | I69: 32.368016,48.383616 | J69: 3192 | K69: 12.66666667 | L69: 12.66666667 | M69: =D69 -> 0
A70: 65 | B70: 1404/01/24 | C70: 2 | D70: 0 | E70: خیابان مقام علی از نبش امام تاشهدای محراب | J70: 0 | K70: 0 | L70: 0 | M70: 0
A71: 66 | B71: 1404/01/25 | C71: 1 | D71: 130 | E71: 32.380069,48.4210482 | F71: 32.380492,48.419879 | G71: 40 | H71: 2 | I71: 32.380078,48.421034 | J71: 3158 | K71: 5.333333333 | L71: 5.333333333 | M71: 130
A72: 67 | B72: 1404/01/25 | C72: 1 | D72: 0 | E72: 32.380069,48.4210482 | F72: 32.380492,48.419879 | G72: 25 | H72: 1.1 | I72: 32.380101,48.421006 | J72: 3159 | K72: 1.833333333 | L72: 1.833333333 | M72: 0
A73: 68 | B73: 1404/01/25 | C73: 1 | D73: 0 | E73: 32.380069,48.4210482 | F73: 32.380492,48.419879 | G73: 35 | H73: 1.8 | I73: 32.380153,48.420966 | J73: 3160 | K73: 4.2 | L73: 4.2 | M73: 0
A74: 69 | B74: 1404/01/25 | C74: 1 | D74: 0 | E74: 32.380069,48.4210482 | F74: 32.380492,48.419879 | G74: 20 | H74: 16 | I74: 32.380147,48.420810 | J74: 3161 | K74: 21.33333333 | L74: 21.33333333 | M74: 0
A75: 70 | B75: 1404/01/25 | C75: 1 | D75: 0 | E75: 32.380069,48.4210482 | F75: 32.380492,48.419879 | G75: 10 | H75: 14 | I75: 32.380223,48.420677 | J75: 3162 | K75: 9.333333333 | L75: 9.333333333 | M75: 0
A76: 71 | B76: 1404/01/25 | C76: 1 | D76: 0 | E76: 32.380069,48.4210482 | F76: 32.380492,48.419879 | G76: 20 | H76: 7 | I76: 32.380239,48.420571 | J76: 3163 | K76: 9.333333333 | L76: 9.333333333 | M76: 0
A77: 72 | B77: 1404/01/25 | C77: 1 | D77: 0 | E77: 32.380069,48.4210482 | F77: 32.380492,48.419879 | G77: 60 | H77: 1 | I77: 32.380348,48.420311 | J77: 3164 | K77: 4 | L77: 4 | M77: 0
A78: 73 | B78: 1404/01/25 | C78: 1 | D78: 0 | E78: 32.380069,48.4210482 | F78: 32.380492,48.419879 | G78: 50 | H78: 3.4 | I78: 32.380452,48.419933 | J78: 3165 | K78: 11.33333333 | L78: 11.33333333 | M78: 0
A79: 74 | B79: 1404/01/25 | C79: 1 | D79: 0 | E79: 32.380069,48.4210482 | F79: 32.380492,48.419879 | G79: 25 | H79: 2.5 | I79: 32.380483,48.419858 | J79: 3166 | K79: 4.166666667 | L79: 4.166666667 | M79: 0
A80: 75 | B80: 1404/01/25 | C80: 1 | D80: 0 | E80: خیابان دکتر حسابی ازنبش قرنی نا انتهای مسیر | J80: 0 | K80: 0 | L80: 0 | M80: 0
A81: 76 | B81: 1404/01/25 | C81: 2 | D81: 226 | E81: 32.373432,48.413457 | F81: 32.374425,48.411575 | G81: 45 | H81: 1.2 | I81: 32.373521,48.413404 | J81: 3173 | K81: 3.6 | L81: 3.6 | M81: 226
A82: 77 | B82: 1404/01/25 | C82: 2 | D82: 0 | E82: 32.373432,48.413457 | F82: 32.374425,48.411575 | G82: 45 | H82: 1.9 | I82: 32.373532,48.413379 | J82: 3174 | K82: 5.7 | L82: 5.7 | M82: 0
B83: جمع طولی | D83: =SUM(D57:D82) -> 743 | E83: صفحه 3 | I83: جمع مازاد | K83: =SUM(K57:K82) -> 231.3666667 | L83: 0 | M83: 0
A84: ردیف | B84: تاریخ | C84: مسیر | D84: طول مسیر | E84: مختصات ابتدای مسیر | F84: مختصات انتهای مسیر | G84: عرض مازاد | H84: طول مسیرعرض مازاد(m) | I84: مختصات عرض مازاد | J84: شماره عکس | K84: معادل سازی متر طول | L84: 0 | M84: 0
A85: 78 | B85: 1404/01/25 | C85: 2 | D85: 0 | E85: 32.373432,48.413457 | F85: 32.374425,48.411575 | G85: 140 | H85: 0.9 | I85: 32.373572,48.413325 | J85: 3175 | K85: =H85*G85/15 -> 8.4 | L85: =K85 -> 8.4 | M85: =D85 -> 0
A86: 79 | B86: 1404/01/25 | C86: 2 | D86: 0 | E86: 32.373432,48.413457 | F86: 32.374425,48.411575 | G86: 10 | H86: 8 | I86: 32.374061,48.412320 | J86: 3176 | K86: =H86*G86/15 -> 5.333333333 | L86: 5.333333333 | M86: 0
A87: 80 | B87: 1404/01/25 | C87: 2 | D87: 0 | E87: 32.373432,48.413457 | F87: 32.374425,48.411575 | G87: 25 | H87: 2.5 | I87: 32.374378,48.411526 | J87: 3177 | K87: 4.166666667 | L87: 4.166666667 | M87: 0
A88: 81 | B88: 1404/01/25 | C88: 2 | D88: 0 | E88: 32.373432,48.413457 | F88: 32.374425,48.411575 | G88: 30 | H88: 2 | I88: 32.374353,48.411508 | J88: 3178 | K88: 4 | L88: 4 | M88: 0
A89: 82 | B89: 1404/01/25 | C89: 2 | D89: 0 | E89: خیابان طالقاتی از نبش ابوریحان تا خیابان مطهری | K89: 0 | L89: 0 | M89: 0
A90: 83 | B90: 1404/01/30 | C90: 1 | D90: 61.5 | E90: 32.361988,48.402439 | F90: 32.362270,48.401983 | G90: 35 | H90: 57 | I90: 32.362033,48.402345 | J90: 3196 | K90: 133 | L90: 133 | M90: 61.5
A91: 84 | B91: 1404/01/30 | C91: 1 | D91: 0 | E91: 32.361988,48.402439 | F91: 32.362270,48.401983 | G91: 120 | H91: 1.4 | I91: 32.362122,48.402270 | J91: 3197 | K91: 11.2 | L91: 11.2 | M91: 0
A92: 85 | B92: 1404/01/30 | C92: 1 | D92: 0 | E92: 32.361988,48.402439 | F92: 32.362270,48.401983 | G92: 60 | H92: 3 | I92: 32.362239,48.401963 | J92: 3198 | K92: 12 | L92: 12 | M92: 0
A93: 86 | B93: 1404/01/30 | C93: 1 | D93: 0 | E93: خیابان بستان سعدی 33از نبش شهید حلبی زاده تا روبروی فلاحت 9 | J93: 0 | K93: 0 | L93: 0 | M93: 0
A94: 87 | B94: 1404/01/30 | C94: 2 | D94: 23 | E94: 32.366571,48.386541 | F94: 32.366545,48.386706 | G94: 40 | H94: 2 | I94: 32.366571,48.386542 | J94: 3207 | K94: 5.333333333 | L94: 5.333333333 | M94: 23
A95: 88 | B95: 1404/01/30 | C95: 2 | D95: 0 | E95: 32.366571,48.386541 | F95: 32.366545,48.386706 | G95: 40 | H95: 1.4 | I95: 32.366544,48.386662 | J95: 3208 | K95: 3.733333333 | L95: 3.733333333 | M95: 0
A96: 89 | B96: 1404/01/30 | C96: 2 | D96: 0 | E96: 32.366571,48.386541 | F96: 32.366545,48.386706 | G96: 50 | H96: 2 | I96: 32.366545,48.386706 | J96: 3209 | K96: 6.666666667 | L96: 6.666666667 | M96: 0
A97: 90 | B97: 1404/01/30 | C97: 2 | D97: 0 | E97: گذر خیابان امام جنوبی روبروی مخابرات | J97: 0 | K97: 0 | L97: 0 | M97: 0
A98: 91 | B98: 1404/01/30 | C98: 0 | D98: 0 | E98: تقاطع فردوسی وطباطبایی | G98: 200 | H98: 2 | I98: 32.36467348.405003 | J98: 3200 | K98: 26.66666667 | L98: 26.66666667 | M98: 0
A99: 92 | B99: 1404/01/30 | C99: 0 | D99: 0 | E99: تقاطع سعیدی 3 و19 | G99: 200 | H99: 2.2 | I99: 32.36494,48.404979 | J99: 3201 | K99: 29.33333333 | L99: 29.33333333 | M99: 0
A100: 93 | B100: 1404/01/30 | C100: 0 | D100: 0 | E100: تقاطع سعیدی 3 و19 | G100: 100 | H100: 1.4 | I100: 32.363193,48.405214 | J100: 3201 | K100: 9.333333333 | L100: 9.333333333 | M100: 0
A101: 94 | B101: 1404/01/30 | C101: 0 | D101: 0 | E101: امام خمینی جنوبی | G101: 65 | H101: 3 | I101: 32.366467,48.386802 | J101: 3211 | K101: 13 | L101: 13 | M101: 0
A102: 95 | B102: 1404/01/30 | C102: 0 | D102: 0 | E102: امام خمینی جنوبی | G102: 40 | H102: 2 | I102: 32.366467,48.38680 | J102: 3212 | K102: 5.333333333 | L102: 5.333333333 | M102: 0
A103: 96 | B103: 1404/01/30 | C103: 0 | D103: 0 | E103: امام خمینی جنوبی | G103: 70 | H103: 1.5 | I103: 32.366471,48.386797 | J103: 3213 | K103: 7 | L103: 7 | M103: 0
A104: 97 | B104: 1404/01/30 | C104: 0 | D104: 0 | E104: شهدای محراب تقاطع مقام علی | G104: 65 | H104: 2.2 | I104: 32.367931,48.383531 | J104: 3214 | K104: 9.533333333 | L104: 9.533333333 | M104: 0
A105: 98 | B105: 1404/01/30 | C105: 0 | D105: 0 | E105: خیابان شهدای محراب | G105: 50 | H105: 3.3 | I105: 32.367865,48.387029 | J105: 3215 | K105: 11 | L105: 11 | M105: 0
A106: 99 | B106: 1404/01/30 | C106: 0 | D106: 0 | E106: خیابان شهدای محراب | G106: 190 | H106: 1.1 | I106: 32.367881,48.387036 | J106: 3216 | K106: 13.93333333 | L106: 13.93333333 | M106: 0
A107: 100 | B107: 1404/01/30 | C107: 0 | D107: 0 | E107: خیابان بوستان سعدی | G107: 55 | H107: 1.1 | I107: 32.361889,48.404855 | J107: 3217 | K107: 4.033333333 | L107: 4.033333333 | M107: 0
A108: 101 | B108: 1404/01/30 | C108: 0 | D108: 0 | E108: خیابان بوستان سعدی | G108: 35 | H108: 12 | I108: 32.361914,48.404756 | J108: 3218 | K108: 28 | L108: 28 | M108: 0
A109: 102 | B109: 1404/01/30 | C109: 0 | D109: 0 | E109: بلوارطباطبایی | G109: 110 | H109: 2 | I109: 32.369265,48.394987 | J109: 3219 | K109: 14.66666667 | L109: 14.66666667 | M109: 0
A110: 103 | B110: 1404/01/30 | C110: 0 | D110: 0 | E110: خیابان بعثت و میدان احمدی | G110: 80 | H110: 2 | I110: 32.369344,48.394979 | J110: 3220 | K110: 10.66666667 | L110: 10.66666667 | M110: 0
B111: جمع طولی | D111: =SUM(D85:D110) -> 84.5 | E111: صفحه 4 | I111: جمع مازاد | K111: =SUM(K85:K110) -> 376.3333333 | L111: 0 | M111: 0
A112: ردیف | B112: تاریخ | C112: مسیر | D112: طول مسیر | E112: مختصات ابتدای مسیر | F112: مختصات انتهای مسیر | G112: عرض مازاد | H112: طول مسیرعرض مازاد(m) | I112: مختصات عرض مازاد | J112: شماره عکس | K112: معادل سازی متر طول | L112: 0 | M112: 0
A113: 104 | B113: 1404/01/30 | C113: 0 | D113: 0 | E113: --بوستان سعدی نبش سعدی 3 | G113: 165 | H113: 1.65 | I113: 32.362784,48.400905 | J113: 3221 | K113: =H113*G113/15 -> 18.15 | L113: =K113 -> 18.15 | M113: 0
A114: 105 | B114: 1404/01/30 | C114: 0 | D114: 0 | E114: تقاطع بستان سعدی و شاه مرادی | G114: 45 | H114: 3.2 | I114: 32.363977,48.400541 | J114: 3222 | K114: =H114*G114/15 -> 9.6 | L114: 9.6 | M114: 0
A115: 106 | B115: 1404/01/30 | C115: 0 | D115: 0 | E115: بلوارطباطبایی نبش افرینش | G115: 170 | H115: 1.7 | I115: 32.366061,48.402060 | J115: 3223 | K115: 19.26666667 | L115: 19.26666667 | M115: 0
A116: 107 | K116: =H116*G116/10 -> 0 | L116: 0 | M116: 0
A117: 108 | K117: 0 | L117: 0 | M117: 0
A118: 109 | E118: مجموع طول مسير | F118: 1610 | K118: 0 | L118: 0 | M118: 0
A119: 110 | E119: مجموع مازاد مسیر | F119: 998 | K119: 0 | L119: 0 | M119: 0
A120: 111 | K120: 0 | L120: 0 | M120: 0
A121: 112 | K121: 0 | L121: 0 | M121: 0
A122: 113 | K122: =H122*G122/10 -> 0 | L122: 0 | M122: 0
A123: 114 | K123: 0 | L123: 0 | M123: 0
A124: 115 | K124: =H124*G124/10 -> 0 | L124: 0 | M124: 0
A125: 116 | K125: =H125*G125/10 -> 0 | L125: 0 | M125: 0
A126: 117 | K126: 0 | L126: 0 | M126: 0
A127: 118 | K127: 0 | L127: 0 | M127: 0
A128: 119 | K128: =H128*G128/10 -> 0 | L128: 0 | M128: 0
A129: 120 | K129: =H129*G129/10 -> 0 | L129: 0 | M129: 0
A130: 121 | K130: 0 | L130: 0 | M130: 0
A131: 122 | K131: 0 | L131: 0 | M131: =D131 -> 0
A132: 123 | K132: 0 | L132: 0 | M132: 0
A133: 124 | K133: 0 | L133: 0 | M133: 0
A134: 125 | K134: 0 | L134: 0 | M134: 0
A135: 126 | K135: =H135*G135/10 -> 0 | L135: 0 | M135: 0
A136: 127 | K136: =H136*G136/10 -> 0 | L136: 0 | M136: 0
A137: 128 | K137: 0 | L137: 0 | M137: 0
B138: جمع طولی | D138: =SUM(D113:D137) -> 0 | E138: صفحه 5 | I138: جمع مازاد | K138: =SUM(K113:K137) -> 47.01666667 | L138: 0 | M138: 0
A139: ردیف | B139: تاریخ | C139: مسیر | D139: طول مسیر | E139: مختصات ابتدای مسیر | F139: مختصات انتهای مسیر | G139: عرض مازاد | H139: طول مسیرعرض مازاد(m) | I139: مختصات عرض مازاد | J139: شماره عکس | K139: معادل سازی متر طول | L139: 0 | M139: 0
A140: 130 | K140: =H140*G140/10 -> 0 | L140: =K140 -> 0 | M140: =D140 -> 0
A141: 131 | K141: =H141*G141/10 -> 0 | L141: 0 | M141: 0
A142: 132 | K142: 0 | L142: 0 | M142: 0
A143: 133 | K143: 0 | L143: 0 | M143: 0
A144: 134 | K144: 0 | L144: 0 | M144: 0
A145: 135 | K145: 0 | L145: 0 | M145: 0
A146: 136 | K146: 0 | L146: 0 | M146: 0
A147: 137 | K147: 0 | L147: 0 | M147: 0
A148: 138 | K148: 0 | L148: 0 | M148: 0
A149: 139 | K149: =H149*G149/10 -> 0 | L149: 0 | M149: 0
A150: 140 | K150: 0 | L150: 0 | M150: 0
A151: 141 | K151: 0 | L151: =K151 -> 0 | M151: 0
A152: 142 | K152: 0 | L152: =K152 -> 0 | M152: 0
A153: 143 | K153: 0 | L153: 0 | M153: 0
A154: 144 | K154: 0 | L154: 0 | M154: 0
A155: 145 | K155: 0 | L155: 0 | M155: 0
A156: 146 | K156: 0 | L156: 0 | M156: 0
A157: 147 | K157: 0 | L157: 0 | M157: 0
A158: 148 | K158: 0 | L158: 0 | M158: 0
A159: 149 | K159: 0 | L159: 0 | M159: 0
A160: 150 | K160: =H160*G160/10 -> 0 | L160: 0 | M160: 0
A161: 151 | K161: 0 | L161: 0 | M161: 0
A162: 152 | K162: 0 | L162: 0 | M162: 0
A163: 153 | K163: 0 | L163: 0 | M163: 0
A164: 154 | K164: 0 | L164: 0 | M164: 0
A165: 155 | K165: 0 | L165: 0 | M165: 0
B166: جمع طولی | D166: =SUM(D140:D165) -> 0 | E166: صفحه 6 | I166: جمع مازاد | K166: =SUM(K140:K165) -> 0 | L166: 0 | M166: 0
A167: ردیف | B167: تاریخ | C167: مسیر | D167: طول مسیر | E167: مختصات ابتدای مسیر | F167: مختصات انتهای مسیر | G167: عرض مازاد | H167: طول مسیرعرض مازاد(m) | I167: مختصات عرض مازاد | J167: شماره عکس | K167: معادل سازی متر طول | L167: 0 | M167: 0
A168: 130 | K168: =H168*G168/10 -> 0 | L168: 0 | M168: 0
A169: 131 | K169: =H169*G169/10 -> 0 | L169: 0 | M169: 0
A170: 132 | K170: 0 | L170: 0 | M170: 0
A171: 133 | K171: 0 | L171: 0 | M171: 0
A172: 134 | K172: 0 | L172: 0 | M172: 0
A173: 135 | K173: 0 | L173: 0 | M173: 0
A174: 136 | K174: 0 | L174: 0 | M174: 0
A175: 137 | K175: 0 | L175: 0 | M175: 0
A176: 138 | K176: 0 | L176: 0 | M176: 0
A177: 139 | K177: 0 | L177: 0 | M177: 0
A178: 140 | K178: 0 | L178: 0 | M178: 0
A179: 141 | K179: 0 | L179: 0 | M179: 0
A180: 142 | K180: 0 | L180: 0 | M180: 0
A181: 143 | K181: 0 | L181: =K181 -> 0 | M181: 0
A182: 144 | K182: 0 | L182: =K182 -> 0 | M182: 0
A183: 145 | K183: 0 | L183: 0 | M183: 0
A184: 146 | K184: 0 | L184: 0 | M184: 0
A185: 147 | K185: 0 | L185: 0 | M185: 0
A186: 148 | K186: 0 | L186: 0 | M186: 0
A187: 149 | K187: 0 | L187: 0 | M187: 0
A188: 150 | K188: 0 | L188: 0 | M188: 0
A189: 151 | K189: 0 | L189: 0 | M189: 0
A190: 152 | K190: 0 | L190: 0 | M190: 0
A191: 153 | K191: 0 | L191: 0 | M191: 0
A192: 154 | K192: 0 | L192: 0 | M192: 0
A193: 155 | K193: 0 | L193: 0 | M193: 0
B194: جمع طولی | D194: =SUM(D168:D193) -> 0 | E194: صفحه 6 | I194: جمع مازاد | K194: =SUM(K168:K193) -> 0 | L194: 0 | M194: 0
A195: ردیف | B195: تاریخ | C195: مسیر | D195: طول مسیر | E195: مختصات ابتدای مسیر | F195: مختصات انتهای مسیر | G195: عرض مازاد | H195: طول مسیرعرض مازاد(m) | I195: مختصات عرض مازاد | J195: شماره عکس | K195: معادل سازی متر طول | L195: 0 | M195: 0
A196: 130 | K196: =H196*G196/10 -> 0 | L196: 0 | M196: =D196 -> 0
A197: 131 | K197: =H197*G197/10 -> 0 | L197: 0 | M197: 0
A198: 132 | K198: 0 | L198: 0 | M198: 0
A199: 133 | K199: 0 | L199: 0 | M199: 0
A200: 134 | K200: 0 | L200: 0 | M200: 0
... 1410 more rows

Sheet report
